Cogmind - Beta 13 @@@ ROGUE MODE // 2024.05.21 @ 22:04:00 Player: CrossedViper Result: Destroyed by Y-45 Defender with Beam Rifle Performance ------------- Evolutions (2) 1000 Regions Visited (9) 1800 Robots Destroyed (212) 1060 Value Destroyed (6746) 6746 Prototype IDs (6) 120 Alien Tech Used (0) 0 Bonus (776) 776 TOTAL SCORE: 11502 Bonus ------- High Alert Combat Kills 1611 Follower Combat Kills 102 Entered Garrisons 400 Used RIF Installer 2000 Friendly Fire -3337 Cogmind --------- Core Integrity 0/550 Matter 300/300 Energy 11/100 System Corruption 1% Temperature Cool (24) Movement Treading (243) Ox1 Location -8/Materials Parts ------- > --- POWER (1) -------- (None) > --- PROPULSION (3) --- Light Treads Light Treads Armored Medium Treads > --- UTILITY (4) ------ Huge Storage Unit Improved Salvage Targeting Computer Weapon Mount Medium Reactive Plating > --- WEAPON (3) ------- Gauss Rifle Gauss Rifle KE Penetrator > --- INVENTORY (25) --- Experimental Heat Sink Experimental Heat Sink Transport Network Coupler Improved Salvage Targeting Computer Experimental Core Analyzer Improved Transmission Jammer Medium Reactive Plating Advanced Hacking Suite Relay Coupler [Grunt] (31) Relay Coupler [Grunt] (29) Advanced Drone Bay (2/2) Wave Gun Advanced Plasma Cannon Gauss Rifle Grenade Launcher Advanced Remote Datajack Peak State ------------ > --- POWER ------------ Neutrino Core > --- PROPULSION ------- Biometal Leg Biometal Leg Biometal Leg > --- UTILITY ---------- Experimental Heat Sink Huge Storage Unit Improved Salvage Targeting Computer Medium Reactive Plating > --- WEAPON ----------- Wave Gun Gauss Rifle Gauss Rifle > --- INVENTORY -------- Light Treads Light Treads Light Treads Armored Medium Treads Experimental Heat Sink Advanced Matter Compressor Transport Network Coupler Improved Salvage Targeting Computer Weapon Mount Experimental Core Analyzer Improved Transmission Jammer Medium Reactive Plating Medium Reactive Plating Advanced Hacking Suite Advanced Drone Bay Wave Gun Advanced Plasma Cannon Gauss Rifle Gauss Rifle Gauss Rifle KE Penetrator Grenade Launcher Advanced Remote Datajack [Rating: 71] Favorites ----------- Power Heavy Ion Engine Engine Heavy Ion Engine Power Core Neutrino Core Propulsion Light Treads Treads Light Treads Leg Biometal Leg Utility Huge Storage Unit Device Experimental Heat Sink Storage Huge Storage Unit Processor Targeting Computer Protection Hardened Light Armor Plating Weapon Autogun Energy Gun Wave Gun Energy Cannon Advanced Beam Cannon Ballistic Gun Autogun Launcher Grenade Launcher Impact Weapon Hammer Build | -11 -10 -10 -9 -9 -8 -8 -8 -8 -8 ------- Run | Yrd Mat Min Mat Min Mat Gar Mat Gar Mat Slots Evolved 4 | . . . 2 . 2 . . . . Power . | . . . . . . . . . . Propulsion 1 | . . . . . 1 . . . . Utility 2 | . . . 2 . . . . . . Weapon 1 | . . . . . 1 . . . . Parts Attached 130 | 6 12 5 37 2 8 42 2 6 10 Power 8 | 1 1 . 3 . . 2 . 1 . Engine 7 | 1 1 . 3 . . 2 . . . Core 1 | . . . . . . . . 1 . Reactor . | . . . . . . . . . . Propulsion 37 | 2 2 1 8 2 1 14 . 3 4 Treads 34 | 2 2 1 8 2 1 11 . 3 4 Leg 3 | . . . . . . 3 . . . Wheel . | . . . . . . . . . . Hover . | . . . . . . . . . . Flight . | . . . . . . . . . . Utility 35 | 1 3 . 12 . 5 10 . 1 3 Device 9 | . . . 2 . 3 3 . . 1 Storage 8 | 1 2 . 4 . . 1 . . . Processor 3 | . 1 . 1 . . 1 . . . Hackware . | . . . . . . . . . . Protection 15 | . . . 5 . 2 5 . 1 2 Artifact . | . . . . . . . . . . Weapon 50 | 2 6 4 14 . 2 16 2 1 3 Energy Gun 4 | . . 1 . . . 1 1 . 1 Energy Cannon 3 | . . . 1 . . 1 1 . . Ballistic Gun 32 | 2 3 2 9 . 2 11 . 1 2 Ballistic Cannon . | . . . . . . . . . . Launcher 7 | . 2 . 3 . . 2 . . . Special Weapon . | . . . . . . . . . . Impact Weapon 4 | . 1 1 1 . . 1 . . . Slashing Weapon . | . . . . . . . . . . Piercing Weapon . | . . . . . . . . . . Special Melee Weapon . | . . . . . . . . . . Unidentified Prototypes 5 | . . . 3 . . 2 . . . Parts Lost 27 | . 1 3 5 . 2 7 . 1 8 Power 3 | . 1 . . . . 1 . . 1 Propulsion 8 | . . 1 1 . . 2 . . 4 Utility 6 | . . . 2 . 2 1 . . 1 Weapon 10 | . . 2 2 . . 3 . 1 2 Highest Loss Streak 7 | . 1 3 1 . 1 5 . 1 7 To Critical Strikes . | . . . . . . . . . . Average Slot Usage (%) 98 | . 96 92 96 100 99 99 100 99 99 Engine 9 | . 13 14 11 11 9 8 9 4 . Treads 21 | . 27 28 21 22 27 22 . 6 26 Leg 3 | . . . . . . 4 27 20 . Device 5 | . . . 5 . 7 9 9 9 9 Storage 10 | . 14 14 11 11 9 9 9 9 9 Processor 13 | . 12 14 16 22 9 9 9 9 9 Protection 8 | . . . 9 11 9 8 9 9 9 Energy Gun 2 | . . 9 . . . 3 7 9 9 Energy Cannon 3 | . . . 4 11 9 . 1 . . Ballistic Gun 18 | . 27 7 15 11 18 21 18 17 18 Naked Turns . | . . . . . . . . . . Heaviest Build 127 | 13 29 28 100 100 104 122 125 127 114 Greatest Support 84 | 40 40 40 40 40 60 84 84 84 67 Greatest Overweight (x) 4 | . . . 2 2 1 4 1 2 1 Average Overweight (x) 1 | . . . 1 2 1 1 1 1 1 Largest Inventory Capacity 25 | 8 15 15 25 25 25 25 25 25 25 Average Capacity 23 | 7 14 15 23 25 25 25 25 25 25 Most Carried 25 | 4 13 13 25 25 24 25 25 25 25 Average Carried 21 | 2 6 12 20 25 23 24 25 24 24 Final Capacity 25 | 8 15 15 25 25 25 25 25 25 25 Final Carried 25 | 4 13 11 25 25 24 25 25 25 17 Class Distribution -------------------- 35% | Mutant 33% | Scavenger-Tank 22% | Scavenger-Mutant 7% | Tank Dominant Class ---------------- Mutant | -10/Materials Mutant | -10/Mines Scavenger-Mutant | -9/Materials Mutant | -9/Mines Tank | -8/Materials Scavenger-Tank | -8/Garrison Scavenger-Tank | -8/Materials Scavenger-Tank | -8/Garrison Scavenger-Tank | -8/Materials Resources | -11 -10 -10 -9 -9 -8 -8 -8 -8 -8 ----------- Run | Yrd Mat Min Mat Min Mat Gar Mat Gar Mat Matter Collected 5485 | 269 440 . 1176 87 402 2068 49 605 389 Remotely . | . . . . . . . . . . Salvage Created 8552 | 101 826 . 1972 261 899 2137 17 1327 1012 Parts 570 | 5 53 . 134 8 60 158 2 97 53 Haulers Intercepted 9 | . 2 . 6 . . . . . 1 Recyclers Shooed 10 | . 4 . 3 . 1 . . . 2 Parts Field Recycled . | . . . . . . . . . . Retrieved Matter . | . . . . . . . . . . Parts Self-Destructed . | . . . . . . . . . . Prevented . | . . . . . . . . . . Kills | -11 -10 -10 -9 -9 -8 -8 -8 -8 -8 ------- Run | Yrd Mat Min Mat Min Mat Gar Mat Gar Mat Combat Hostiles Destroyed 150 | . 14 . 28 2 14 42 . 37 13 Melee 1 | . . . 1 . . . . . . Guns 122 | . 10 . 18 . 9 35 . 37 13 Cannons 9 | . . . 1 2 5 1 . . . AOE 18 | . 4 . 8 . . 6 . . . Classes Destroyed 16 | 2 6 . 3 1 1 1 . 1 1 Worker 9 | . 2 . 5 . 2 . . . . Builder 10 | . 2 . 4 . 3 . . . 1 Tunneler 5 | 1 . . 2 . 1 . . . 1 Hauler 9 | . 2 . 6 . . . . . 1 Recycler 13 | 1 2 . 6 1 2 . . . 1 Mechanic 1 | . . . . . . . . . 1 Operator 3 | . . . 2 . . . 1 . . Watcher 10 | . 2 . 5 . 1 1 . . 1 Swarmer 49 | . 3 . 9 . 4 14 . 19 . Grunt 56 | . 11 . 10 1 5 12 . 9 8 Brawler 2 | . . . . 1 . . . 1 . Duelist 3 | . . . 1 . . . . 1 1 Sentry 28 | . . . 8 . 3 9 . 4 4 Specialist 3 | . . . . . . 3 . . . Hunter 6 | . . . . . 2 4 . . . Programmer 3 | . . . . . . . . 3 . Thug 1 | . . . . 1 . . . . . Best Kill Streak 11 | 2 3 . 5 3 5 5 1 5 11 Combat Bots Only 5 | . 3 . 3 2 4 5 . 5 5 Max Kills in Single Turn 3 | 2 2 . 3 1 3 3 1 2 2 Gunslinging 1 | . . . . . . 1 . 1 . Exploded 3 | . 2 . 3 . . 3 . . . Melee 1 | . . . 1 . . . . . . Uniques/NPCs Destroyed 1 | . . . . . . 1 . . . HV-R5K (-8/Garrison) Combat | -11 -10 -10 -9 -9 -8 -8 -8 -8 -8 -------- Run | Yrd Mat Min Mat Min Mat Gar Mat Gar Mat Hostile Shots Fired 745 | . 61 20 109 8 52 226 8 122 139 Missed 197 | . 14 2 29 2 17 63 2 31 37 Damage Taken 7145 | . 561 533 1048 97 520 1972 86 800 1528 Core 944 | . 87 156 130 20 62 245 . 117 127 Absorbed by Shields 291 | . . . . . . 45 . 246 . Ignored by Resistances 394 | . . . . . . 188 5 135 66 Regen/Repaired (Parts) 280 | . 212 . 31 . 37 . . . . Core Remaining (%) 54 | 100 . 2 . 62 . . . . . Volleys Fired 506 | 4 80 4 117 19 42 129 4 66 41 Largest 3 | 2 2 2 2 2 3 3 3 3 3 Hottest 137 | 40 40 60 91 91 114 137 137 137 137 Shots Fired 1241 | 8 156 7 223 27 126 374 6 193 121 Gun 1137 | 8 152 7 182 20 84 367 3 193 121 Cannon 92 | . . . 36 7 42 4 3 . . Launcher 12 | . 4 . 5 . . 3 . . . Special . | . . . . . . . . . . Kinetic 991 | 8 152 4 182 20 84 325 2 131 83 Thermal 235 | . . . 36 7 42 46 4 62 38 Explosive 12 | . 4 . 5 . . 3 . . . Electromagnetic 3 | . . 3 . . . . . . . Robot Hit Streak 31 | 4 23 3 12 8 9 31 5 9 11 Robot Miss Streak 6 | 2 4 2 4 3 3 4 . 3 6 Penetration Max 1 | . . . . . . 1 . 1 1 Secondary Targets 25 | . . . . . . 9 . 10 6 Max Gunslinging Chain 2 | . . . . . . 1 . 2 1 Shots Hit Robots 797 | 5 111 5 136 15 73 252 1 115 84 Core Hits 342 | 3 44 2 72 6 40 91 1 52 31 Critical Kills 7 | . . . . . . 4 . 2 1 Critical Parts Destroyed 8 | . 2 . 1 . 1 1 . 1 2 Critical Strikes 19 | . 2 . 1 . 1 6 . 4 5 Burn 4 | . . . . . . 1 . 1 2 Destroy 15 | . 2 . 1 . 1 5 . 3 3 Melee Attacks 10 | . 1 1 4 . . 4 . . . Impact 10 | . 1 1 4 . . 4 . . . Slashing . | . . . . . . . . . . Piercing . | . . . . . . . . . . Sneak Attacks 3 | . . . 3 . . . . . . Combat Hostiles . | . . . . . . . . . . Follow-up Attacks . | . . . . . . . . . . Damage Inflicted 15628 | 65 1570 75 2856 296 1412 4574 39 2565 2176 Guns 13054 | 65 1188 75 1839 172 747 4207 24 2565 2172 Cannons 1211 | . . . 408 105 658 40 . . . Explosions 1097 | . 370 . 400 . . 327 . . . Melee 184 | . . . 184 . . . . . . Ramming 82 | . 12 . 25 19 7 . 15 . 4 Kinetic 10759 | 65 1188 52 1839 172 747 3413 . 1772 1511 Thermal 3483 | . . . 408 105 658 834 24 793 661 Explosive 1097 | . 370 . 400 . . 327 . . . Electromagnetic 23 | . . 23 . . . . . . . Impact 184 | . . . 184 . . . . . . Slashing . | . . . . . . . . . . Piercing . | . . . . . . . . . . Highest Corruption 2 | . . . 2 2 . . . 1 1 Average Corruption 1 | . . . 1 2 . . . 1 1 Corruption Purged . | . . . . . . . . . . Corruption Blocked . | . . . . . . . . . . Effects 34 | . . . 20 10 . . . 4 . Message Errors 7 | . . . 2 4 . . . 1 . Matter Fused 7 | . . . 5 1 . . . 1 . Heat Flow Errors 4 | . . . 3 1 . . . . . Energy Discharges 3 | . . . 2 1 . . . . . Data Loss (minor) 6 | . . . 3 2 . . . 1 . Data Loss (major) 1 | . . . . . . . . 1 . Misfires 6 | . . . 5 1 . . . . . Overload Shots . | . . . . . . . . . . Overflow Damage 43 | . 7 . 36 . . . . . . Projectiles 23 | . . . 23 . . . . . . Explosions 7 | . 7 . . . . . . . . Melee 13 | . . . 13 . . . . . . Knockbacks 1 | . . . . . 1 . . . . Impact 1 | . . . . . 1 . . . . Kinetic . | . . . . . . . . . . Secondary . | . . . . . . . . . . Self-Inflicted Damage 51 | . . . 51 . . . . . . Shots 2 | . . . 2 . . . . . . Rammed 11 | . 4 . 3 2 1 . . . 1 Targets Rammed 14 | . 4 . 4 2 1 . 2 . 1 Kicked 2 | . . . . . . . 2 . . Crushed 1 | . . . 1 . . . . . . Highest Temperature 351 | . 34 2 351 255 346 270 12 32 120 Average Temperature 65 | . 8 2 82 107 78 74 6 8 34 Received Heat Transfer 2292 | . 324 40 330 24 162 460 63 169 720 Siege Activations . | . . . . . . . . . . Robots Corrupted . | . . . . . . . . . . Combat Hostiles . | . . . . . . . . . . Parts Fried 1 | . . . 1 . . . . . . Impact Corruptions 2 | . . . 2 . . . . . . Robots Melted . | . . . . . . . . . . Combat Hostiles . | . . . . . . . . . . Parts Melted 6 | . . . 2 1 1 1 . . 1 Heat Transferred 5305 | . . . 703 185 1147 939 37 1184 1110 Parts Sabotaged . | . . . . . . . . . . Parts Stolen . | . . . . . . . . . . Parts Stripped . | . . . . . . . . . . Power Chain Reactions . | . . . . . . . . . . Alert | -11 -10 -10 -9 -9 -8 -8 -8 -8 -8 ------- Run | Yrd Mat Min Mat Min Mat Gar Mat Gar Mat Peak Influence 2093 | 10 302 117 478 182 188 2093 1044 1559 1166 Initial 1019 | . 6 117 33 182 . 104 1019 485 759 Average 501 | 3 143 102 221 78 94 1068 844 1037 939 Maximum Alert Level 5 | . 1 . 2 . . 5 3 4 4 Low Security (%) 42 | 100 66 100 52 100 100 1 . . . Level 1 15 | . 33 . 26 . . 12 . . . Level 2 13 | . . . 20 . . 19 . 16 . Level 3 13 | . . . . . . 15 100 49 91 Level 4 11 | . . . . . . 31 . 33 8 Level 5 4 | . . . . . . 19 . . . High Security . | . . . . . . . . . . Max Security . | . . . . . . . . . . Squads Dispatched 19 | . 6 . 4 . 1 . 3 . 5 Investigation 8 | . 5 . 2 . . . . . 1 Extermination . | . . . . . . . . . . Reinforcement 6 | . 1 . 2 . . . 2 . 1 Assault . | . . . . . . . . . . Garrison 5 | . . . . . 1 . 1 . 3 Intercept . | . . . . . . . . . . Searches Triggered . | . . . . . . . . . . Construction Impeded 1 | . . . . . . . . . 1 Haulers Reinforced . | . . . . . . . . . . Active Scanning Responses . | . . . . . . . . . . Cargo Convoy Interrupts . | . . . . . . . . . . Stealth | -11 -10 -10 -9 -9 -8 -8 -8 -8 -8 --------- Run | Yrd Mat Min Mat Min Mat Gar Mat Gar Mat Distress Signals 4 | . 1 . 3 . . . . . . Communications Jammed . | . . . . . . . . . . Distress Signals . | . . . . . . . . . . Times Spotted 217 | . 29 13 40 2 23 38 8 39 25 Peak Tracking Total 18 | . 3 18 5 2 6 6 8 5 10 Tactical Retreats 13 | . 6 1 . . . 2 . 3 1 Traps | -11 -10 -10 -9 -9 -8 -8 -8 -8 -8 ------- Run | Yrd Mat Min Mat Min Mat Gar Mat Gar Mat Traps Triggered 20 | . . . 1 . . 11 . 8 . Indirectly . | . . . . . . . . . . Trap Hack Attempts . | . . . . . . . . . . Triggered . | . . . . . . . . . . Disarmed . | . . . . . . . . . . Reprogrammed . | . . . . . . . . . . Reused . | . . . . . . . . . . Traps Extracted . | . . . . . . . . . . Installed . | . . . . . . . . . . Triggered . | . . . . . . . . . . Machines | -11 -10 -10 -9 -9 -8 -8 -8 -8 -8 ---------- Run | Yrd Mat Min Mat Min Mat Gar Mat Gar Mat Machines Disabled 15 | . 1 . 3 . . 5 . 3 3 Max in Single Turn 2 | . 1 . 2 . . 2 . 1 1 Garrison Relay 5 | . . . . . . 3 . 2 . Phase Generator 1 | . . . . . . 1 . . . Machines Repaired . | . . . . . . . . . . Machines Dismantled . | . . . . . . . . . . Machines Sabotaged . | . . . . . . . . . . Overloaded Fab Kills . | . . . . . . . . . . Hacking | -11 -10 -10 -9 -9 -8 -8 -8 -8 -8 --------- Run | Yrd Mat Min Mat Min Mat Gar Mat Gar Mat Machines Accessed 37 | . 9 . 12 . 4 5 3 2 2 Terminals 24 | . 6 . 6 . 2 5 2 2 1 Fabricators . | . . . . . . . . . . Repair Stations 4 | . 1 . 2 . 1 . . . . Recycling Units 4 | . 2 . 2 . . . . . . Scanalyzers 3 | . . . 2 . . . . . 1 Garrison Access 2 | . . . . . 1 . 1 . . Total Hacks 91 | . 29 . 31 . 8 8 5 4 6 Successful 54 | . 14 . 20 . 6 4 5 2 3 Failed 36 | . 15 . 10 . 2 4 . 2 3 Catastrophic 8 | . 5 . 2 . . . . . 1 Database Lockouts 1 | . . . 1 . . . . . . Manual 41 | . 17 . 14 . 4 . 4 . 2 Terminals 55 | . 18 . 14 . 5 8 4 4 2 Fabricators . | . . . . . . . . . . Repair Stations 15 | . 8 . 5 . 2 . . . . Recycling Units 5 | . 3 . 2 . . . . . . Scanalyzers 14 | . . . 10 . . . . . 4 Garrison Access 2 | . . . . . 1 . 1 . . Terminal Hacks 22 | . 5 . 5 . 3 4 3 2 . Robot Analysis 9 | . 5 . 2 . 2 . . . . Open Door 2 | . . . . . . 2 . . . Emergency Access Points 2 | . . . . . . 1 . 1 . Terminal Index 1 | . . . . . 1 . . . . Unreport Threat 2 | . . . . . . . 2 . . Locate Traps 1 | . . . 1 . . . . . . Dispatch Records 1 | . . . 1 . . . . . . Hauler Manifests 1 | . . . 1 . . . . . . Zone Layout 1 | . . . . . . . 1 . . Patrol Navigation 1 | . . . . . . 1 . . . Security Stations 1 | . . . . . . . . 1 . Fabricator Hacks . | . . . . . . . . . . Repair Station Hacks 11 | . 6 . 3 . 2 . . . . Scan Component 6 | . 3 . 2 . 1 . . . . Repair 5 | . 3 . 1 . 1 . . . . Recycling Unit Hacks . | . . . . . . . . . . Scanalyzer 13 | . . . 10 . . . . . 3 Insert Component 7 | . . . 5 . . . . . 2 Analyze 6 | . . . 5 . . . . . 1 Garrison Access Hacks 2 | . . . . . 1 . 1 . . Unlock Access 2 | . . . . . 1 . 1 . . Unauthorized Hacks 6 | . 3 . 2 . . . 1 . . Terminals 2 | . 1 . . . . . 1 . . Botnet 2 | . 1 . . . . . 1 . . Fabricators . | . . . . . . . . . . Repair Stations . | . . . . . . . . . . Recycling Units 4 | . 2 . 2 . . . . . . Tunnel 4 | . 2 . 2 . . . . . . Scanalyzers . | . . . . . . . . . . Garrison Access . | . . . . . . . . . . Data Cores Recovered 1 | . . . . . . . 1 . . Used 1 | . . . . . . . 1 . . Hacking Detections 31 | . 7 . 10 . 3 5 2 2 2 Full Trace Events 10 | . 5 . 3 . . 1 . . 1 Feedback Events 2 | . . . 2 . . . . . . Corruption 2 | . . . 2 . . . . . . Feedback Blocked . | . . . . . . . . . . Robot Schematics Acquired . | . . . . . . . . . . Robots Built . | . . . . . . . . . . Authchips . | . . . . . . . . . . Time . | . . . . . . . . . . Total Robot Build Rating . | . . . . . . . . . . Part Schematics Acquired 6 | . . . 5 . . . . . 1 Parts Built . | . . . . . . . . . . Authchips . | . . . . . . . . . . Time . | . . . . . . . . . . Total Part Build Rating . | . . . . . . . . . . Parts Repaired 5 | . 3 . 1 . 1 . . . . Time 142 | . 78 . 26 . 38 . . . . Parts Recycled . | . . . . . . . . . . Recycled Matter . | . . . . . . . . . . Retrieved Matter . | . . . . . . . . . . Retrieved Components . | . . . . . . . . . . Parts Scanalyzed 6 | . . . 5 . . . . . 1 Part Schematics Acquired 6 | . . . 5 . . . . . 1 Parts Damaged . | . . . . . . . . . . Bothacking | -11 -10 -10 -9 -9 -8 -8 -8 -8 -8 ------------ Run | Yrd Mat Min Mat Min Mat Gar Mat Gar Mat Used RIF Installer 4 | . . . . . . 2 . 2 . Robot Detection 1 | . . . . . . . . 1 . Watcher Feeds 1 | . . . . . . . . 1 . Structural Interface 1 | . . . . . . 1 . . . Robots Hacked . | . . . . . . . . . . Non-combat . | . . . . . . . . . . Combat . | . . . . . . . . . . Robot Hacks Applied . | . . . . . . . . . . Relay Couplers Released 18 | . . . . . . 12 . 6 . Machine Destruction 18 | . . . . . . 12 . 6 . Fabnet Peak Effective % . | . . . . . . . . . . Robots Rewired 5 | . . . . . . 2 . 3 . Allies Hacked . | . . . . . . . . . . Hacks Repelled . | . . . . . . . . . . Allies | -11 -10 -10 -9 -9 -8 -8 -8 -8 -8 -------- Run | Yrd Mat Min Mat Min Mat Gar Mat Gar Mat Total Allies 7 | . . . . 1 . 3 . 3 . Largest Group 3 | . . . . 1 . 2 2 3 3 Highest-Rated Group 146 | . . . . 31 . 146 62 63 48 Highest-Rated Ally 146 | . . . . 31 . 146 31 31 16 Total Orders 1 | . . . . . . . . 1 . STAY 1 | . . . . . . . . 1 . Ally Attacks 34 | . . . . . . . 9 . 25 Total Damage 421 | . . . . . . . 147 . 274 Kills 6 | . . . . . . . 1 . 5 Allies Corrupted . | . . . . . . . . . . Allies Melted . | . . . . . . . . . . Intel | -11 -10 -10 -9 -9 -8 -8 -8 -8 -8 ------- Run | Yrd Mat Min Mat Min Mat Gar Mat Gar Mat Robot Analysis Total 8 | . 5 . 1 . 2 . . . . Derelict Logs Recovered 3 | . . . . 3 . . . . . Drone Launches . | . . . . . . . . . . Drone Recoveries . | . . . . . . . . . . Exploration | -11 -10 -10 -9 -9 -8 -8 -8 -8 -8 ------------- Run | Yrd Mat Min Mat Min Mat Gar Mat Gar Mat Turns Passed 12828 | 78 1191 62 4600 1119 915 2801 120 1496 446 Spaces Moved 4231 | 40 524 27 1362 332 302 925 57 534 128 Core 8 | 8 . . . . . . . . . Treads 3558 | 32 524 27 1362 332 302 735 . 116 128 Legs 665 | . . . . . . 190 57 418 . Wheels . | . . . . . . . . . . Hover . | . . . . . . . . . . Flight . | . . . . . . . . . . Fastest Speed 50 | 50 160 160 160 320 240 180 180 180 240 Average Speed 245 | 138 160 160 292 320 240 244 180 193 240 Slowest Speed 390 | 160 160 160 320 320 240 390 180 320 243 Overloaded Moves . | . . . . . . . . . . Propulsion Burnouts . | . . . . . . . . . . Robots Hopped . | . . . . . . . . . . Cave-ins Triggered . | . . . . . . . . . . Exploration Rate (%) 49 | 4 83 10 90 86 24 94 6 75 21 Regions Visited 9 Branch Regions 2 Pre-discovered Areas 4 | . 2 . 2 . . . . . . Known Exits Taken 2 | . . . . . 1 . 1 . . Unknown Exits Taken 5 | 1 1 1 1 1 . . . . . Scrap Searched 1 | . . . . 1 . . . . . Spaces Dug 24 | . 1 . 11 . . 9 3 . . Terrain Destroyed 167 | . 19 . 35 . . 101 4 2 6 Melee 1 | . 1 . . . . . . . . Projectile 12 | . . . . . . . 4 2 6 AOE 154 | . 18 . 35 . . 101 . . . Terrain Rammed . | . . . . . . . . . . Walls Destroyed . | . . . . . . . . . . Machines Disabled . | . . . . . . . . . . Actions | -11 -10 -10 -9 -9 -8 -8 -8 -8 -8 --------- Run | Yrd Mat Min Mat Min Mat Gar Mat Gar Mat Total 5728 | 53 727 36 1782 360 412 1243 67 867 181 Wait 541 | . 95 . 190 1 53 13 3 186 . Move 4223 | 39 523 26 1361 331 302 924 56 533 128 Hop . | . . . . . . . . . . Pick Up 95 | 4 10 . 34 2 3 36 . 6 . Fast Attach 45 | 6 6 . 14 1 4 11 . 2 1 Attach 36 | . 1 2 7 . 4 11 . 4 7 Detach 1 | . . . 1 . . . . . . Swap 50 | . 5 3 17 1 . 20 2 . 2 Drop 90 | . 2 . 33 3 3 41 . 7 1 Fire 506 | 4 80 4 117 19 42 129 4 66 41 Melee 10 | . 1 1 4 . . 4 . . . Ram . | . . . . . . . . . . Kick 2 | . . . . . . . 2 . . Crush 12 | . 4 . 4 2 1 . . . 1 Escape Stasis 47 | . . . . . . 24 . 23 . Rewire 70 | . . . . . . 30 . 40 . Trap . | . . . . . . . . . . Miscellaneous . | . . . . . . . . . . Route ------- -11/Scrapyard -10/Materials (discovered 5 exits: *Mat x3 / [*Min x2]) -10/Mines -9/Materials (discovered 5 exits: *Mat x3 / [*Min x2]) -9/Mines (discovered 3 exits: *Mat x2 / [*Zio]) -8/Materials (discovered 2 exits: *Sto / Gar) -8/Garrison (discovered 4 exits: *Mat x4) -8/Materials -8/Garrison (discovered 3 exits: [*Fac x2] / *Mat) -8/Materials (discovered 1 exit: *Sto) History --------- Turn | Location | Event 9 | -11/Scrapyard | Discovered new exit (range 15) 79 | -11/Scrapyard | Entered Materials 107 | -10/Materials | Discovered new exit (range 12) 201 | -10/Materials | Discovered new exit (range 9) 305 | -10/Materials | Build established: Mutant 444 | -10/Materials | Discovered new exit (range 10) 634 | -10/Materials | Discovered new exit (range 3) 795 | -10/Materials | Discovered new exit (range 14) 905 | -10/Materials | Repaired Assault Rifle 932 | -10/Materials | Repaired Lgt. Treads 960 | -10/Materials | Repaired Lgt. Treads 1270 | -10/Materials | Entered Mines 1271 | -10/Mines | Assembled infested the area 1272 | -10/Mines | Met a Derelict bent on vengeance 1280 | -10/Mines | A weapon hastily lodged in a ceiling crevice suddenly fell to the ground 1292 | -10/Mines | Core integrity fell below 50% 1296 | -10/Mines | Discovered new exit (range 8) 1297 | -10/Mines | Core integrity fell below 20% 1332 | -10/Mines | Entered Materials 1332 | -9/Materials | Evolved 2 slots: Utility x2 1337 | -9/Materials | Lost 3 parts (1n2w) 1647 | -9/Materials | Discovered new exit (range 16) 1822 | -9/Materials | Discovered new exit (range 4) 1939 | -9/Materials | Discovered new exit (range 6) 2272 | -9/Materials | Build established: Scavenger-Mutant 2876 | -9/Materials | Repaired Grenade Launcher 3014 | -9/Materials | Discovered new exit (range 16) 3053 | -9/Materials | Central database locked down 5101 | -9/Materials | Build established: Mutant 5379 | -9/Materials | Discovered new exit (range 4) 5932 | -9/Materials | Entered Mines 5964 | -9/Mines | Learned location of 1 exit from Materials 6020 | -9/Mines | A Derelict revealed a hidden shortcut to a safe place 6396 | -9/Mines | Learned 2 Materials zone layouts 6523 | -9/Mines | Received a Mining Laser from a helpful Derelict 6657 | -9/Mines | Discovered new exit (range 6) 6939 | -9/Mines | Learned Materials emergency access door positions 6955 | -9/Mines | Discovered new exit (range 8) 7051 | -9/Mines | Entered Materials 7051 | -8/Materials | Evolved 2 slots: Propulsion x1, Weapon x1 7052 | -8/Materials | Identified exit to Storage 7405 | -8/Materials | Build established: Tank 7936 | -8/Materials | Garrison activated, responded to threat 7942 | -8/Materials | Repaired Imp. Heat Sink 7966 | -8/Materials | Identified exit to Garrison 7966 | -8/Materials | Entered Garrison 7992 | -8/Garrison | Triggered checkpoint 8041 | -8/Garrison | Discovered new exit (range 6) 8100 | -8/Garrison | Lost 5 parts (1p2n1u1w) 8202 | -8/Garrison | Triggered checkpoint 8245 | -8/Garrison | Garrison Relay disabled 8359 | -8/Garrison | Build established: Scavenger-Tank 8434 | -8/Garrison | Installed Relay Interface Framework 8488 | -8/Garrison | Triggered checkpoint 8648 | -8/Garrison | Discovered new exit (range 14) 8891 | -8/Garrison | Phase Generator disabled 8942 | -8/Garrison | Garrison Relay disabled 8968 | -8/Garrison | Build established: Scavenger-Mutant 9056 | -8/Garrison | Triggered checkpoint 9190 | -8/Garrison | Triggered checkpoint 9200 | -8/Garrison | Triggered checkpoint 9347 | -8/Garrison | Discovered new exit (range 15) 9349 | -8/Garrison | Build established: Scavenger-Tank 9393 | -8/Garrison | Expanded RIF knowledge: Structural Interface 9458 | -8/Garrison | Triggered checkpoint 9535 | -8/Garrison | Core integrity fell below 50% 10073 | -8/Garrison | Rescued HV-R5K 10171 | -8/Garrison | Murdered HV-R5K 10171 | -8/Garrison | Destroyed HV-R5K 10195 | -8/Garrison | Found Prototype Processor 10422 | -8/Garrison | Triggered checkpoint 10449 | -8/Garrison | Garrison Relay disabled 10524 | -8/Garrison | Discovered new exit (range 14) 10767 | -8/Garrison | Entered Materials 10767 | -8/Materials | Accompanied by 2 allies 10861 | -8/Materials | Identified exit to Garrison 10879 | -8/Materials | Garrison activated, responded to threat 10887 | -8/Materials | Entered Garrison 10887 | -8/Garrison | Accompanied by 1 ally 10987 | -8/Garrison | Expanded RIF knowledge: Robot Detection 11015 | -8/Garrison | Triggered checkpoint 11086 | -8/Garrison | Triggered checkpoint 11233 | -8/Garrison | Triggered checkpoint 11271 | -8/Garrison | Discovered new exit (range 14) 11469 | -8/Garrison | Triggered checkpoint 11667 | -8/Garrison | Expanded RIF knowledge: Watcher Feeds 11705 | -8/Garrison | Garrison Relay disabled 11782 | -8/Garrison | Triggered checkpoint 11875 | -8/Garrison | Triggered checkpoint 11936 | -8/Garrison | Learned Factory security intel 11966 | -8/Garrison | Discovered new exit (range 12) 12116 | -8/Garrison | Triggered checkpoint 12148 | -8/Garrison | Garrison Relay disabled 12303 | -8/Garrison | Triggered checkpoint 12326 | -8/Garrison | Discovered new exit (range 3) 12383 | -8/Garrison | Entered Materials 12383 | -8/Materials | Accompanied by 3 allies 12487 | -8/Materials | Discovered exit to Storage (range 8) 12639 | -8/Materials | Identified Exp. Core Analyzer 12750 | -8/Materials | Core integrity fell below 20% 12829 | -8/Materials | Destroyed by Y-45 Defender with Beam Rifle Last Messages --------------- 12818_ K-01 Serf collects debris. 12819_ U-05 Engineer builds a Door. 12820_ K-01 Serf cleans the Terminal. 12822_ Dropped Adv. Matter Compressor. 12823_ Extracted 270 matter. 12823_ G-47 Trooper destroyed. 12823_ K-01 Serf cleans the Terminal. 12823_ K-01 Serf collects debris. 12824_ Extracted 8 matter. 12826_ K-01 Serf cleans the Terminal. 12827_ Extracted 10 matter. 12827_ Y-45 Defender suffers critical hit (Destroy). 12827_ Y-45 Defender destroyed. 12827_ Switching to secondary target: Y-45 Defender. 12827_ Slug penetrates Y-45 Defender. 12827_ U-05 Engineer builds a Door. 12828_ Extracted 12 matter. 12828_ K-01 Serf collects debris. Map ----- +----------------------------------------------------+ | ?????????????????????????????????????????????????? | | ?????????????????????????????????????????????????? | | ?????????????????????????????????????????????????? | | ?????????????????????????????????????????????????? | | ?????????????????????????????????????????????????? | | ?????????????????????????????????????????????????? | | ?????????????????????????????????????????????????? | | ?????????????????????????????????????????????????? | | ?????????????????????????????????????????????????? | | ?????????????????????????????????????????????????? | | ?????????????????????????????????????????????????? | | ?????????????????????????? #???????????????????? | | ?????????????????????????? #???????????????????? | | ?????????????????????????? #???????????????????? | | ?????????????????????????? #???????????????????? | | ?????????????????????????? #???????????????????? | | ?????????????????????????" #???????????????????? | | ???????????????? "?"???"" #???????????????????? | | ???????????????? """ w""" #???????????????????? | | ????????????????? #???????????????????? | | ???????????????#? #???????????????????? | | ???????????????# """ """ #???????????????????? | | ??????????????"" """ """ !#??????????#????????? | | ?????????????#"T """ """ #????"???? ##+####### | | ?????????????#""k !*= #????""?? # # | | ???????????????# [%!@ #????? #! # | | ?????????####### """ ="""YY #????###+### # | | ?????????*=%== """ """g%=######% # """ # | | ???????? ===! !!=%%"! ""%%=!|%*%* % #*""" # | | ????????] ==!%*|%%%*%!*=%=k=*!!! =%= %+*""" "" # | | ???????? !%!!=[=* t%! = u #==%" """# | | ????????????####!*[%=##########+### #!%*% S"# | | ???????????????###+#????????? ####### ! # | | ???????????????????????????# ##???######/#### | | ???????????????????????????#? " #?????????# #??? | | ????????????????????????????? ""#?????????# #??? | | ???????????????????????????? ""#?????????#%#??? | | ???????????????????????????? """##????????# #??? | | ???????????????????????????# % ""??# ??????# #??? | | ???????????????????????????# ""??# ???### ##?? | | ???????????????????????????# = ""??# ??# % #?? | | ???????????????????????????# ????# ??# % #?? | | ???????????????????????????# ????# ""# +?? | | ???????????????????????????# ????# ""# % # ? | | ???????????????????????????# ????# T"## ## | | ??????????????#############??#?????# ""## #?? | | ????????????? #?????????? ""## #??# | | ??????????????? #???????????? ## #? | | ????????????????? ###############+## #?"" | | ??????????????????????# * %* # "" | +----------------------------------------------------+ Best States ------------- Heat Dissipation 57 Energy Generation 19 Energy Capacity 315 Matter Stores 300 Matter Capacity 300 Sight Range 16 Terrain Scan Density 10 Armor Coverage 225 Resistance: KI 30 Evasion (%) 50 Targeting Accuracy 5 Recoil Reduction 3 Salvage Targeting 2 Item Schematics ----------------- Lgt. Treads | -9/Materials | Scanalyzed Seismic Detector | -9/Materials | Scanalyzed Hammer | -9/Materials | Scanalyzed Huge Storage Unit | -9/Materials | Scanalyzed Transport Network Coupler | -9/Materials | Scanalyzed Weapon Mount | -8/Materials | Scanalyzed Robot Schematics ------------------ None Fabricated ------------ Nothing Alien Tech Used ----------------- None Achievements -------------- None Challenges ------------ None Game ------ Seed CryofiberFlyingNetwork Manual? 0 Play Time 00:57:37 Cumulative 790.8 hours Start 2024.05.21 @ 21:08:32 End 2024.05.21 @ 22:04:00 Sessions 1 Manual Loads 0 Difficulty Rogue Special Mode None Game No. 507 Rogue 500 Adventurer 0 Explorer 7 Win Type - Total 55 Types 20/5/19/2/0/1/6/1/1 Lore% 89 Gallery% 96 Achievement% 84 Wizard Run 0 Options --------- Layout 2 ASCII 0 Keyboard 0 Movement Numpad Keybinds 0 Fullscreen 1 Font 24/Tamsyn Map View 50x44 Zoom Use 0% Tactical HUD 1 Map Filters NONE Filters NONE Steam 1 RUN: 3d305b14-694a-44a8-9646-19b906defc8f